Cogmind - Beta 11 @@@ ROGUE MODE // 2022.03.26 @ 15:37:48 Player: 3.14 Result: Self-destructed Performance ------------- Evolutions (2) 1000 Regions Visited (7) 1400 Robots Destroyed (25) 125 Value Destroyed (671) 671 Prototype IDs (29) 580 Alien Tech Used (0) 0 Bonus (349) 349 TOTAL SCORE: 4125 Bonus ------- Follower Combat Kills 49 Aligned with FarCom 300 Cogmind --------- Core Integrity 425/550 Matter 278/300 Energy 250/250 System Corruption 0% Temperature Cool (0) Movement Walking (126) Location -8/Storage Parts ------- > --- POWER (1) -------- Ion Engine > --- PROPULSION (4) --- Aluminum Leg Titanium Leg Titanium Leg > --- UTILITY (4) ------ Large Storage Unit Machine Analyzer > --- WEAPON (2) ------- Maul Maul > --- INVENTORY (15) --- Light Ion Engine Improved Aluminum Leg Titanium Leg Modified TNC Improved Light Armor Plating Hacking Suite Hacking Suite EM Pulse Gun Mini Grenade Launcher Hammer Hammer Hammer Hammer Maul Peak State ------------ > --- POWER ------------ Ion Engine > --- PROPULSION ------- Aluminum Leg Aluminum Leg Titanium Leg Titanium Leg > --- UTILITY ---------- Large Storage Unit Machine Analyzer > --- WEAPON ----------- Maul Maul > --- INVENTORY -------- Light Ion Engine Improved Aluminum Leg Titanium Leg Modified TNC Improved Light Armor Plating Hacking Suite Hacking Suite EM Pulse Gun Mini Grenade Launcher Hammer Hammer Hammer Hammer Maul [Rating: 20] Favorites ----------- Power Ion Engine Engine Ion Engine Propulsion Aluminum Leg Treads Light Treads Leg Aluminum Leg Utility Large Storage Unit Storage Large Storage Unit Processor Machine Analyzer Weapon Hammer Energy Gun EM Pulse Gun Ballistic Gun Assault Rifle Launcher Mini Grenade Launcher Impact Weapon Hammer Build | -11 -10 -9 -9 -9 -8 -8 -8 ------- Run | Scr Mat Mat Min Exi Min Mat Sto Slots Evolved 4 | . . 2 . . . 2 . Power . | . . . . . . . . Propulsion 2 | . . 1 . . . 1 . Utility 2 | . . 1 . . . 1 . Weapon . | . . . . . . . . Parts Attached 23 | 5 10 1 . . . . 7 Power 2 | 1 1 . . . . . . Engine 2 | 1 1 . . . . . . Core . | . . . . . . . . Reactor . | . . . . . . . . Propulsion 8 | 2 3 1 . . . . 2 Treads 2 | 2 . . . . . . . Leg 6 | . 3 1 . . . . 2 Wheel . | . . . . . . . . Hover . | . . . . . . . . Flight . | . . . . . . . . Utility 4 | 1 2 . . . . . 1 Device . | . . . . . . . . Storage 3 | 1 2 . . . . . . Processor 1 | . . . . . . . 1 Hackware . | . . . . . . . . Protection . | . . . . . . . . Artifact . | . . . . . . . . Weapon 9 | 1 4 . . . . . 4 Energy Gun 1 | . 1 . . . . . . Energy Cannon . | . . . . . . . . Ballistic Gun 2 | 1 1 . . . . . . Ballistic Cannon . | . . . . . . . . Launcher 1 | . . . . . . . 1 Special Weapon . | . . . . . . . . Impact Weapon 5 | . 2 . . . . . 3 Slashing Weapon . | . . . . . . . . Piercing Weapon . | . . . . . . . . Special Melee Weapon . | . . . . . . . . Unidentified Prototypes . | . . . . . . . . Parts Lost 3 | . 1 . . . . . 2 Power . | . . . . . . . . Propulsion 3 | . 1 . . . . . 2 Utility . | . . . . . . . . Weapon . | . . . . . . . . Highest Loss Streak 1 | . 1 . . . . . 1 To Critical Strikes . | . . . . . . . . Average Slot Usage (%) 78 | . 83 77 77 77 77 63 73 Engine 11 | . 13 11 11 11 11 9 9 Treads 7 | . 18 . . . . . . Leg 22 | . 9 33 33 33 33 27 33 Storage 11 | . 14 11 11 11 11 9 9 Energy Gun 2 | . 7 . . . . . . Ballistic Gun 5 | . 13 . . . . . . Impact Weapon 14 | . 6 22 22 22 22 18 17 Naked Turns . | . . . . . . . . Heaviest Build 31 | 12 29 29 29 29 29 29 31 Greatest Support 54 | 40 40 30 30 30 30 30 54 Greatest Overweight (x) 1 | . 1 . . . . . . Average Overweight (x) . | . . . . . . . . Largest Inventory Capacity 15 | 8 15 15 15 15 15 15 15 Average Capacity 12 | 6 8 15 15 15 15 15 15 Most Carried 15 | 6 8 7 9 10 10 11 15 Average Carried 8 | 3 7 7 8 9 10 10 14 Final Capacity 15 | 8 15 15 15 15 15 15 15 Final Carried 14 | 5 8 7 9 10 10 11 14 Class Distribution -------------------- 100% | Mutant Dominant Class ---------------- Mutant | -10/Materials Mutant | -9/Materials Mutant | -9/Mines Mutant | -9/Exiles Mutant | -8/Mines Mutant | -8/Materials Mutant | -8/Storage Resources | -11 -10 -9 -9 -9 -8 -8 -8 ----------- Run | Scr Mat Mat Min Exi Min Mat Sto Matter Collected 713 | 185 370 . 60 . . . 98 Remotely . | . . . . . . . . Salvage Created 836 | . 427 . 21 . . 49 339 Parts 33 | . 24 . . . . . 9 Haulers Intercepted 2 | . 1 . . . . . 1 Recyclers Shooed . | . . . . . . . . Parts Field Recycled . | . . . . . . . . Retrieved Matter . | . . . . . . . . Parts Self-Destructed . | . . . . . . . . Prevented . | . . . . . . . . Kills | -11 -10 -9 -9 -9 -8 -8 -8 ------- Run | Scr Mat Mat Min Exi Min Mat Sto Combat Hostiles Destroyed 18 | . 9 . 1 . . 1 7 Melee 2 | . . . 1 . . . 1 Guns 9 | . 9 . . . . . . AOE 5 | . . . . . . . 5 Classes Destroyed 8 | . 5 . 1 . . . 2 Worker 1 | . . . . . . . 1 Builder 3 | . 2 . . . . . 1 Hauler 2 | . 1 . . . . . 1 Operator 2 | . 1 . . . . 1 . Swarmer 3 | . 3 . . . . . . Grunt 11 | . 6 . . . . 1 4 Brawler 3 | . . . . . . . 3 Assembled 1 | . . . 1 . . . . Best Kill Streak 6 | . 3 . 1 . . 1 6 Combat Bots Only 5 | . 2 . 1 . . 1 5 Max Kills in Single Turn 2 | . 2 . 1 . . 1 1 Gunslinging . | . . . . . . . . Exploded 1 | . . . . . . . 1 Melee 1 | . . . 1 . . . 1 Uniques/NPCs Destroyed . | . . . . . . . . Combat | -11 -10 -9 -9 -9 -8 -8 -8 -------- Run | Scr Mat Mat Min Exi Min Mat Sto Damage Taken 1054 | . 374 . 10 . . 18 652 Core 182 | . 57 . . . . . 125 Absorbed by Shields . | . . . . . . . . Regen/Repaired (Parts) 14 | . 14 . . . . . . Core Remaining (%) 92 | 100 77 . . . 100 . . Volleys Fired 55 | 2 47 . . . . . 6 Largest 2 | 1 2 . . . . . 1 Hottest 60 | 20 60 . . . . . 30 Shots Fired 102 | 2 94 . . . . . 6 Gun 96 | 2 94 . . . . . . Cannon . | . . . . . . . . Launcher 6 | . . . . . . . 6 Special . | . . . . . . . . Kinetic 66 | 2 64 . . . . . . Thermal . | . . . . . . . . Explosive 6 | . . . . . . . 6 Electromagnetic 30 | . 30 . . . . . . Robot Hit Streak 10 | 1 10 . . . . . 4 Robot Miss Streak 7 | 1 7 . . . . . . Penetration Max . | . . . . . . . . Secondary Targets 1 | . 1 . . . . . . Max Gunslinging Chain 1 | . 1 . . . . . . Shots Hit Robots 79 | 1 57 . 2 . . 6 13 Core Hits 32 | . 22 . . . . . 10 Critical Kills . | . . . . . . . . Critical Parts Destroyed 4 | . . . 1 . . 1 2 Critical Strikes 4 | . . . 1 . . 1 2 Smash 4 | . . . 1 . . 1 2 Melee Attacks 33 | . 1 . 3 . . 7 22 Impact 33 | . 1 . 3 . . 7 22 Slashing . | . . . . . . . . Piercing . | . . . . . . . . Sneak Attacks 4 | . . . . . . 1 3 Combat Hostiles . | . . . . . . . . Follow-up Attacks . | . . . . . . . . Damage Inflicted 1879 | 14 714 . 63 . . 141 947 Guns 716 | 14 702 . . . . . . Cannons . | . . . . . . . . Explosions 506 | . . . . . . . 506 Melee 645 | . . . 63 . . 141 441 Ramming 12 | . 12 . . . . . . Kinetic 516 | 14 502 . . . . . . Thermal . | . . . . . . . . Explosive 506 | . . . . . . . 506 Electromagnetic 200 | . 200 . . . . . . Impact 645 | . . . 63 . . 141 441 Slashing . | . . . . . . . . Piercing . | . . . . . . . . Highest Corruption 2 | . 2 . . . . . . Average Corruption 2 | . 2 . . . . . . Corruption Purged . | . . . . . . . . Corruption Blocked . | . . . . . . . . Effects 1 | . 1 . . . . . . Alerts 1 | . 1 . . . . . . Overload Shots . | . . . . . . . . Overflow Damage 151 | . . . 23 . . 29 99 Projectiles . | . . . . . . . . Explosions . | . . . . . . . . Melee 151 | . . . 23 . . 29 99 Knockbacks 5 | . 1 . 1 . . 2 1 Impact 5 | . 1 . 1 . . 2 1 Kinetic . | . . . . . . . . Secondary . | . . . . . . . . Self-Inflicted Damage . | . . . . . . . . Shots . | . . . . . . . . Rammed 2 | . 2 . . . . . . Targets Rammed 3 | . 3 . . . . . . Kicked . | . . . . . . . . Crushed 1 | . 1 . . . . . . Highest Temperature 90 | . 90 . . . . . 2 Average Temperature 30 | . 31 . . . . . 1 Received Heat Transfer 626 | . 264 . 20 . . 9 333 Siege Activations . | . . . . . . . . Robots Corrupted . | . . . . . . . . Combat Hostiles . | . . . . . . . . Parts Fried 3 | . . . . . . 1 2 Impact Corruptions 8 | . . . 2 . . 2 4 Robots Melted . | . . . . . . . . Combat Hostiles . | . . . . . . . . Parts Melted . | . . . . . . . . Heat Transferred . | . . . . . . . . Parts Sabotaged . | . . . . . . . . Parts Stolen . | . . . . . . . . Parts Stripped . | . . . . . . . . Power Chain Reactions . | . . . . . . . . Missiles Intercepted . | . . . . . . . . Alert | -11 -10 -9 -9 -9 -8 -8 -8 ------- Run | Scr Mat Mat Min Exi Min Mat Sto Peak Influence 365 | . 265 67 25 . . 40 365 Initial 56 | . . 56 25 . . . 16 Average 89 | . 112 57 25 . . 13 153 Maximum Alert Level 1 | . 1 . . . . . 1 Low Security (%) 86 | 100 83 100 100 . 100 100 68 Level 1 13 | . 16 . . . . . 31 Level 2 . | . . . . . . . . Level 3 . | . . . . . . . . Level 4 . | . . . . . . . . Level 5 . | . . . . . . . . High Security . | . . . . . . . . Max Security . | . . . . . . . . Squads Dispatched 6 | . 2 . . . . 1 3 Investigation 1 | . 1 . . . . . . Extermination . | . . . . . . . . Reinforcement 3 | . 1 . . . . 1 1 Assault 2 | . . . . . . . 2 Garrison . | . . . . . . . . Intercept . | . . . . . . . . Searches Triggered . | . . . . . . . . Construction Impeded . | . . . . . . . . Haulers Reinforced . | . . . . . . . . Active Scanning Responses . | . . . . . . . . Cargo Convoy Interrupts . | . . . . . . . . Stealth | -11 -10 -9 -9 -9 -8 -8 -8 --------- Run | Scr Mat Mat Min Exi Min Mat Sto Distress Signals 4 | . 2 . . . . 1 1 Communications Jammed . | . . . . . . . . Distress Signals . | . . . . . . . . Times Spotted 50 | . 24 . 2 . . 2 22 Peak Tracking Total 9 | . 4 . 1 . . 2 9 Tactical Retreats 5 | . 3 . . . . . 2 Traps | -11 -10 -9 -9 -9 -8 -8 -8 ------- Run | Scr Mat Mat Min Exi Min Mat Sto Traps Triggered 4 | . 4 . . . . . . Indirectly . | . . . . . . . . Trap Hack Attempts . | . . . . . . . . Triggered . | . . . . . . . . Disarmed . | . . . . . . . . Reprogrammed . | . . . . . . . . Reused . | . . . . . . . . Traps Extracted . | . . . . . . . . Installed . | . . . . . . . . Triggered . | . . . . . . . . Machines | -11 -10 -9 -9 -9 -8 -8 -8 ---------- Run | Scr Mat Mat Min Exi Min Mat Sto Machines Disabled 1 | . 1 . . . . . . Max in Single Turn 1 | . 1 . . . . . . Machines Sabotaged . | . . . . . . . . Garrisons Compromised . | . . . . . . . . Overloaded Fab Kills . | . . . . . . . . Hacking | -11 -10 -9 -9 -9 -8 -8 -8 --------- Run | Scr Mat Mat Min Exi Min Mat Sto Machines Accessed 9 | . 5 1 . 2 . 1 . Terminals 6 | . 4 1 . . . 1 . Fabricators . | . . . . . . . . Repair Stations 1 | . 1 . . . . . . Recycling Units . | . . . . . . . . Scanalyzers . | . . . . . . . . Garrison Access . | . . . . . . . . Total Hacks 20 | . 13 3 . 2 . 2 . Successful 15 | . 9 2 . 2 . 2 . Failed 5 | . 4 1 . . . . . Catastrophic . | . . . . . . . . Database Lockouts . | . . . . . . . . Manual 12 | . 6 3 . 1 . 2 . Terminals 16 | . 11 3 . . . 2 . Fabricators . | . . . . . . . . Repair Stations 2 | . 2 . . . . . . Recycling Units . | . . . . . . . . Scanalyzers . | . . . . . . . . Garrison Access . | . . . . . . . . Terminal Hacks 8 | . 6 . . 2 . . . Record 1 | . . . . 1 . . . Robot Analysis 1 | . 1 . . . . . . Prototype ID Bank 4 | . 4 . . . . . . Recall Investigation 1 | . 1 . . . . . . EX-Prototype ID Bank 1 | . . . . 1 . . . Fabricator Hacks . | . . . . . . . . Repair Station Hacks 2 | . 2 . . . . . . Scan Component 1 | . 1 . . . . . . Repair 1 | . 1 . . . . . . Recycling Unit Hacks . | . . . . . . . . Scanalyzer . | . . . . . . . . Garrison Access Hacks . | . . . . . . . . Unauthorized Hacks 5 | . 1 2 . . . 2 . Terminals 5 | . 1 2 . . . 2 . Track 1 | . . . . . . 1 . Botnet 3 | . 1 1 . . . 1 . Operators 1 | . . 1 . . . . . Fabricators . | . . . . . . . . Repair Stations . | . . . . . . . . Recycling Units . | . . . . . . . . Scanalyzers . | . . . . . . . . Garrison Access . | . . . . . . . . Data Cores Recovered 1 | . 1 . . . . . . Used 1 | . 1 . . . . . . Hacking Detections 6 | . 4 1 . . . 1 . Full Trace Events . | . . . . . . . . Feedback Events . | . . . . . . . . Feedback Blocked . | . . . . . . . . Robot Schematics Acquired . | . . . . . . . . Robots Built . | . . . . . . . . Authchips . | . . . . . . . . Time . | . . . . . . . . Total Robot Build Rating . | . . . . . . . . Part Schematics Acquired . | . . . . . . . . Parts Built . | . . . . . . . . Authchips . | . . . . . . . . Time . | . . . . . . . . Total Part Build Rating . | . . . . . . . . Parts Repaired 1 | . 1 . . . . . . Time 26 | . 26 . . . . . . Parts Recycled . | . . . . . . . . Recycled Matter . | . . . . . . . . Retrieved Matter . | . . . . . . . . Retrieved Components . | . . . . . . . . Parts Scanalyzed . | . . . . . . . . Part Schematics Acquired . | . . . . . . . . Parts Damaged . | . . . . . . . . Bothacking | -11 -10 -9 -9 -9 -8 -8 -8 ------------ Run | Scr Mat Mat Min Exi Min Mat Sto Used RIF Installer . | . . . . . . . . Robots Hacked . | . . . . . . . . Non-combat . | . . . . . . . . Combat . | . . . . . . . . Robot Hacks Applied . | . . . . . . . . Relay Couplers Released . | . . . . . . . . Fabnet Peak Effective % . | . . . . . . . . Robots Rewired . | . . . . . . . . Allies Hacked . | . . . . . . . . Hacks Repelled . | . . . . . . . . Allies | -11 -10 -9 -9 -9 -8 -8 -8 -------- Run | Scr Mat Mat Min Exi Min Mat Sto Total Allies 2 | . . . . . . . 2 Largest Group 2 | . . . . . . . 2 Highest-Rated Group 62 | . . . . . . . 62 Highest-Rated Ally 31 | . . . . . . . 31 Total Orders . | . . . . . . . . Ally Attacks 19 | . . . . . . . 19 Total Damage 255 | . . . . . . . 255 Kills 3 | . . . . . . . 3 Allies Corrupted . | . . . . . . . . Allies Melted 1 | . . . . . . . 1 Intel | -11 -10 -9 -9 -9 -8 -8 -8 ------- Run | Scr Mat Mat Min Exi Min Mat Sto Robot Analysis Total 1 | . 1 . . . . . . Derelict Logs Recovered 1 | . . . 1 . . . . Drone Launches . | . . . . . . . . Drone Recoveries . | . . . . . . . . Exploration | -11 -10 -9 -9 -9 -8 -8 -8 ------------- Run | Scr Mat Mat Min Exi Min Mat Sto Turns Passed 2436 | 79 965 78 137 593 119 160 305 Spaces Moved 1572 | 42 493 65 102 493 100 111 166 Core 5 | 5 . . . . . . . Treads 342 | 37 305 . . . . . . Legs 1225 | . 188 65 102 493 100 111 166 Wheels . | . . . . . . . . Hover . | . . . . . . . . Flight . | . . . . . . . . Fastest Speed 50 | 50 120 120 120 120 120 120 120 Average Speed 131 | 146 152 120 120 120 120 120 121 Slowest Speed 190 | 160 190 120 120 120 120 120 125 Overloaded Moves . | . . . . . . . . Propulsion Burnouts . | . . . . . . . . Robots Hopped . | . . . . . . . . Cave-ins Triggered . | . . . . . . . . Exploration Rate (%) 33 | 4 65 11 36 90 21 12 31 Regions Visited 7 Branch Regions 4 Pre-discovered Areas 1 | . . . . 1 . . . Known Exits Taken . | . . . . . . . . Unknown Exits Taken 7 | 1 1 1 1 1 1 1 . Scrap Searched . | . . . . . . . . Spaces Dug 1 | . . . . . . . 1 Terrain Destroyed 16 | . . . . . . . 16 Melee 1 | . . . . . . . 1 Projectile . | . . . . . . . . AOE 15 | . . . . . . . 15 Terrain Rammed . | . . . . . . . . Walls Destroyed . | . . . . . . . . Machines Disabled . | . . . . . . . . Actions | -11 -10 -9 -9 -9 -8 -8 -8 --------- Run | Scr Mat Mat Min Exi Min Mat Sto Total 1792 | 55 616 65 112 494 99 127 224 Wait 79 | . 41 . 7 1 . 10 20 Move 1565 | 41 492 64 101 492 99 110 166 Hop . | . . . . . . . . Pick Up 25 | 6 11 . 2 1 . 1 4 Fast Attach 14 | 5 7 . . . . . 2 Attach 4 | . 2 1 . . . . 1 Detach . | . . . . . . . . Swap 5 | . 1 . . . . . 4 Drop 14 | 1 11 . . . . . 2 Fire 55 | 2 47 . . . . . 6 Melee 28 | . 1 . 2 . . 6 19 Ram . | . . . . . . . . Kick . | . . . . . . . . Crush 3 | . 3 . . . . . . Escape Stasis . | . . . . . . . . Rewire . | . . . . . . . . Trap . | . . . . . . . . Miscellaneous . | . . . . . . . . Route ------- -11/Scrapyard -10/Materials (discovered 2 exits: *Mat / [*Min]) -9/Materials -9/Mines -9/Exiles -8/Mines -8/Materials -8/Storage History --------- Turn | Location | Event 7 | -11/Scrapyard | Discovered new exit (range 13) 80 | -11/Scrapyard | Entered Materials 303 | -10/Materials | Build established: Mutant 818 | -10/Materials | Discovered new exit (range 13) 877 | -10/Materials | Repaired Ion Engine 933 | -10/Materials | Discovered new exit (range 7) 1045 | -10/Materials | Entered another Materials area 1045 | -9/Materials | Evolved 2 slots: Propulsion x1, Utility x1 1112 | -9/Materials | Discovered new exit (range 6) 1123 | -9/Materials | Entered Mines 1124 | -9/Mines | Assembled infested the area 1173 | -9/Mines | Met 8R-AWN 1243 | -9/Mines | Learned Materials security intel 1255 | -9/Mines | Discovered new exit (range 5) 1260 | -9/Mines | Entered Exiles 1288 | -9/Exiles | Welcomed by 8R-AWN 1311 | -9/Exiles | Met EX-HEX 1367 | -9/Exiles | Met EX-DEC 1403 | -9/Exiles | Visited The Gauntlet 1565 | -9/Exiles | Learned location of Zion (-7) 1589 | -9/Exiles | Met EX-BIN 1689 | -9/Exiles | Aligned with FarCom system 1690 | -9/Exiles | Given EX-Vault access code 1717 | -9/Exiles | Opened EX-Vault 1727 | -9/Exiles | Found Modified TNC 1753 | -9/Exiles | Warned to stay clear of 0b10 Research branches 1837 | -9/Exiles | Discovered new exit (range 15) 1853 | -9/Exiles | Left Exiles lab with Modified TNC 1853 | -9/Exiles | Entered Mines 1969 | -8/Mines | Discovered new exit (range 5) 1972 | -8/Mines | Entered Materials 1972 | -8/Materials | Evolved 2 slots: Propulsion x1, Utility x1 2114 | -8/Materials | Discovered new exit (range 15) 2132 | -8/Materials | Entered Storage 2153 | -8/Storage | Met a pair of Derelict thieves 2437 | -8/Storage | Self-destructed Last Messages --------------- 02412_ U-05 Engineer builds a Wall. 02416_ Acquired 8 matter. 02417_ U-05 Engineer builds a Wall. 02417_ U-05 Engineer lays Concrete. 02422_ U-05 Engineer builds a Wall. 02422_ Critical hit (Burn: +37). 02426_ U-05 Engineer lays Concrete. 02427_ U-05 Engineer builds a Wall. 02428_ U-05 Engineer lays Concrete. 02428_ Aluminum Leg destroyed. 02429_ U-05 Engineer lays Concrete. 02431_ G-47 Trooper suffers critical hit (Smash). 02431_ Destroyed Aluminum Leg. 02431_ Destroyed Lgt. Nuclear Core. 02431_ G-47 Trooper system corrupted by crushing effect. 02432_ G-47 Trooper system terminally corrupted. 02432_ U-05 Engineer builds a Wall. 02432_ K-01 Serf collects debris. 02434_ Critical hit (Burn: +37). 02435_ K-01 Serf collects debris. Map ----- +----------------------------------------------------+ | ?????????????????????????????????????????????????? | | ?????????????????????????????????????????????????? | | ?????????????????????????????????????????????????? | | ?????????????????????????????????????????????????? | | ?????????????????????????????????????????????????? | | ?????????????????????????????????????????????????? | | ?????????????????????????????????????????????????? | | ?????????????????????????????????????????????????? | | ?????????????????????????????????????????????????? | | ?????????????????????????????????????????????????? | | ?????????????????????????????????????????????????? | | ????????????????????????w?????o??????????????????? | | ?????????????????????????????????????????????????? | | ???????????????????????????????????????????????### | | ??????????????????????????????????????????????? ? | | ?????????????????????????????????????????????? ^ ? | | ?????????????????????????????????????????????? "" | | ?????????????????????????????????????????????? "" | | ??????????????????????##?????????????????????? "" | | ?????????????????????## ????????????????????? "" | | ??????????g??????????? ????????????????????? "" | | ????????????g?????????? Y????????????????????? | | ???????????????????????# ??######????????????# | | ?????????g?????????????# ##################### | | ???????????????????????# Y = =* ^^ | | ???????????????????????#k@ u## ########### | | ???????????????????????#k # ####??????# | | ???????????????????????# b # #?????# | | ???????????????????????# %/ # #?????# "T | | ???????????????????????#! =# #?????# "" | | ???????????????????????#!! + #??##### ### | | ???????????????????????#!!! # #??# | | ???????????????????????# # ????#/ / | | ???????????????????????# #?#####???#// """ | | ??????????????????###### #?????????# """ | | ??????????????????#]] # ####??????# """ | | ??????????????????#]] + m + | | ??????????????????#]] # ###############?# | | ??????????????????###### #????????#T##???# | | ???????????????????????# #????????" #???###/##### | | ???????????????????????# #????????# #?????# #???? | | ???????????????????????#+####?????# #?????# #???? | | ???????????????????????# ! ######+######## ##### | | ???????????????????????# ] / | | ???????????????????????# ##################### | | ???????????????????????# # #??????????? | | ???????????????????????# # !% #########??? | | ???????????????????????# # ==[ ## = =#??? | | ???????????????????????# # === [ ## ==#??? | | ???????????????????????# # =%* ## #??? | +----------------------------------------------------+ Best States ------------- Heat Dissipation 31 Energy Generation 10 Energy Capacity 250 Matter Stores 300 Matter Capacity 400 Sight Range 16 Terrain Scan Density 10 Evasion (%) 55 Recoil Reduction 2 Item Schematics ----------------- None Robot Schematics ------------------ None Fabricated ------------ Nothing Alien Tech Used ----------------- None Achievements -------------- None Challenges ------------ None Game ------ Seed FlakHackingStreamer Manual? 0 Play Time 00:16:22 Cumulative 689.7 hours Start 2022.03.26 @ 13:00:26 End 2022.03.26 @ 15:37:48 Sessions 3 Manual Loads 0 Difficulty Rogue Special Mode None Game No. 1060 Rogue 1060 Adventurer 0 Explorer 0 Win Type - Total 65 Types 40/1/9/11/4/0/0/0/0 Lore% 88 Gallery% 87 Achievement% 83 Wizard Run 0 Options --------- ASCII 1 Keyboard 0 Movement Numpad Keybinds 0 Fullscreen 0 Font 14/SmallcapsGlow Map View 76x50 Tactical HUD 1 Map Filters NONE Filters NONE Steam 1 RUN: 7db45a10-7cb7-43ba-ac95-e37c45a9e600